bitfinex/quotes_ETHUSD_20240621
["timestamp","ask_amount","ask_price","bid_price","bid_amount"]
[1718990931074,0.49751742,3479.9,3479.8,1.064807]
[1718990931405,0.49751742,3479.9,3479.8,0.55]
[1718990931713,0.49751742,3479.9,3479.4,3.230904]
[1718990931916,0.49751742,3479.8,3479.5,2.29916]
[1718990932128,0.49751742,3479.7,3479.4,2.29924]
[1718990932286,0.49751742,3479.6,3479.4,2.29924]
[1718990932481,4.5778,3480.8,3479.5,0.45986]
[1718990932680,5.58727198,3480.7,3479.3,2.2993]
[1718990932919,2.58727198,3480.6,3479.3,2.2993]
[1718990933126,2.58727198,3480.5,3479.3,2.2993]
[1718990933415,2.58725955,3480.4,3479.3,2.2993]
[1718990933617,3.0,3480.7,3479.4,2.759107]
[1718990933618,0.75778,3480.6,3479.4,2.759107]
[1718990933779,0.49754781,3480.3,3479.5,0.55]
[1718990933980,2.58724864,3480.2,3479.5,0.55]
[1718990934230,0.75778,3480.6,3479.5,0.55]
[1718990934231,2.58722303,3480.1,3479.5,0.55]
[1718990934534,0.49754289,3480.0,3479.5,1.1108477]
[1718990934692,0.75778,3480.6,3479.5,1.1108477]
[1718990934693,0.4975389,3479.9,3479.6,2.2991]
[1718990934873,3.0,3480.7,3479.6,2.2991]
[1718990934874,0.4975389,3479.8,3479.6,2.2991]
[1718990935081,0.4975389,3479.7,3479.6,2.2991]
[1718990935317,0.4975389,3479.7,3479.6,3.363934]
[1718990935675,0.4975389,3479.7,3479.6,1.064834]
[1718990935880,0.4975389,3479.7,3479.6,0.55]
[1718990936304,0.4975389,3479.7,3479.6,2.84911]
[1718990936779,0.49754302,3479.7,3479.6,2.84911]
[1718990937712,0.49754302,3479.7,3479.6,5.14822]
[1718990938617,3.0,3480.7,3479.6,2.84911]
[1718990938847,2.58714344,3480.6,3479.8,2.29896]
[1718990939139,2.58714344,3480.5,3479.8,2.29896]
[1718990939337,2.58714344,3480.4,3479.8,2.29896]
[1718990939641,2.58714344,3480.3,3479.8,2.29896]
[1718990939942,2.58715156,3480.2,3479.8,2.29896]
[1718990940102,2.58717309,3480.1,3479.8,2.29896]
[1718990940442,0.49752914,3480.0,3479.8,2.29896]
[1718990940616,0.49752914,3479.9,3479.8,2.8652505]
[1718990940802,0.49752914,3479.9,3479.8,3.4152505]
[1718990942057,0.4975177,3479.9,3479.8,3.4152505]
[1718990942554,3.0,3480.7,3479.8,3.4152505]
[1718990942855,2.58707087,3480.6,3479.8,3.4152505]
[1718990943035,2.58707087,3480.5,3479.8,3.4152505]
[1718990943342,2.58707087,3480.4,3479.8,2.84896]
[1718990943525,2.58707087,3480.3,3479.8,2.84896]
[1718990943740,2.58707087,3480.2,3479.8,2.84896]
[1718990943944,0.49751363,3480.1,3479.8,0.55]
[1718990944145,3.0,3480.7,3479.8,0.55]
[1718990944146,2.58719089,3480.0,3479.8,0.55]
[1718990944358,2.58719089,3479.9,3479.3,2.29925]
[1718990944523,2.58719089,3479.8,3479.4,0.55]
[1718990944722,0.75778,3480.6,3479.4,0.55]
[1718990944723,2.58719089,3479.7,3479.4,0.55]
[1718990944958,2.58719089,3479.6,3479.4,0.55]
[1718990945160,2.58751163,3479.5,3479.4,0.55]
[1718990945458,0.49759839,3479.5,3479.4,0.55]
[1718990947222,0.49759839,3479.5,3479.1,2.29939]
[1718990947426,2.5874474,3479.4,3479.1,2.29939]
[1718990947639,4.4203,3480.0,3479.1,3.503282]
[1718990947640,0.49759839,3479.3,3479.1,3.503282]
[1718990947837,0.49758618,3479.2,3479.1,8.92227]
[1718990948067,3.0,3480.5,3479.8,2.29897]
[1718990948265,2.58719501,3480.4,3479.8,2.29897]
[1718990948421,2.58719501,3480.4,3479.6,2.29908]
[1718990948422,5.58719501,3480.3,3479.7,2.29899]
[1718990948761,2.58719501,3480.2,3479.8,2.84897]
[1718990948927,2.58719501,3480.1,3479.8,2.84897]
[1718990949129,2.58719501,3480.0,3479.8,2.84897]
[1718990949323,2.58719501,3479.9,3479.8,2.84897]
[1718990949529,2.58719501,3479.9,3479.8,3.4327513]
[1718990951163,2.58713439,3479.9,3479.8,3.4327513]
[1718990951554,2.58713453,3479.9,3479.8,3.4327513]
[1718990952149,2.58713434,3479.9,3479.8,3.4327513]
[1718990954081,4.6442,3480.6,3479.8,3.4327513]
[1718990954365,5.58714262,3480.5,3479.8,2.84897]
[1718990954532,2.58714262,3480.4,3479.8,2.84897]
[1718990954731,2.58714262,3480.3,3479.8,2.84897]
[1718990955043,2.58714262,3480.2,3479.8,2.84897]
[1718990955366,3.0,3480.5,3479.8,0.55]
[1718990955367,2.58714262,3480.1,3479.8,0.55]
[1718990955560,2.58714262,3480.0,3479.8,0.55]
[1718990955729,2.58714262,3479.9,3479.8,2.29897]
[1718990955930,2.58714262,3479.9,3479.8,2.84897]
[1718990957275,2.58714114,3479.9,3479.8,2.84897]
[1718990958189,2.58714114,3479.9,3479.8,0.55]
[1718990958349,2.58714114,3479.9,3479.8,2.84898]
[1718990960153,2.089614,3479.9,3479.8,2.84898]
[1718990960331,2.58712196,3479.9,3479.8,3.363782]
[1718990960673,3.0,3480.5,3479.8,3.363782]
[1718990960837,0.49752171,3479.9,3479.8,2.84898]
[1718990961033,2.08959119,3479.9,3479.8,2.84898]
[1718990961256,0.4975224,3479.9,3479.8,2.84898]
[1718990961443,2.58711359,3479.9,3479.8,2.84898]
[1718990962636,2.58711359,3479.9,3479.6,2.29911]
[1718990962837,2.58711359,3479.8,3479.6,2.29905]
[1718990963062,2.58711359,3479.7,3479.6,2.29905]
[1718990963259,3.0,3480.5,3479.6,2.84905]
[1718990963471,0.49755369,3479.7,3479.6,2.84905]
[1718990963778,2.58727922,3479.7,3479.6,2.84905]
[1718990964575,2.58727922,3479.7,3479.6,3.593793]
[1718990964892,2.58727922,3479.7,3479.6,5.892903]
[1718990965366,0.49755369,3479.7,3479.6,5.892903]
[1718990965888,2.58708392,3479.7,3479.6,5.892903]
[1718990966255,3.0,3480.5,3479.8,2.29898]
[1718990966455,2.5870942,3480.4,3479.8,2.29898]
[1718990966661,2.5870942,3480.3,3479.6,2.84905]
[1718990966959,2.5870942,3480.2,3479.6,2.84905]
[1718990967191,2.5870942,3480.1,3479.7,2.29904]
[1718990967352,2.5870942,3480.0,3479.7,2.29904]
[1718990967547,3.76442,3480.5,3479.4,2.29924]
[1718990967548,2.5870942,3479.9,3479.4,2.29924]
[1718990967784,2.5870942,3479.8,3479.4,2.29924]
[1718990967976,0.49751811,3479.7,3479.4,2.29924]
[1718990968182,0.49751811,3479.6,3479.4,2.29924]
[1718990968367,0.840862,3480.4,3479.5,2.29918]
[1718990968568,0.49754732,3480.3,3479.5,2.29918]
[1718990968767,0.49754732,3480.2,3479.5,2.29918]
[1718990968994,0.49754732,3480.1,3479.5,2.29918]
[1718990969203,0.840862,3480.4,3479.5,2.29918]
[1718990969408,3.0,3480.5,3479.5,2.29918]
[1718990969409,0.49754876,3480.0,3479.5,2.29918]
[1718990969729,0.49754876,3479.9,3479.5,2.29918]
[1718990969898,0.49754688,3479.8,3479.5,2.29918]
[1718990970218,0.49754688,3479.7,3479.5,2.29918]
[1718990970422,0.49754122,3479.6,3479.5,2.29918]
[1718990970720,0.49754122,3479.6,3479.5,2.759029]
[1718990972186,0.49754122,3479.6,3479.5,2.29918]
[1718990972387,3.0,3480.5,3479.6,2.2991]
[1718990972594,0.49754567,3480.4,3479.6,2.2991]
[1718990972794,0.49754567,3480.3,3479.5,2.29917]
[1718990973033,0.49754567,3480.2,3479.5,2.29917]
[1718990973235,0.49754567,3480.1,3479.5,2.29917]
[1718990973526,0.49754567,3480.0,3479.5,2.29917]
[1718990973732,0.49754567,3479.9,3479.5,2.29917]
[1718990973947,0.49754567,3479.8,3479.5,2.29917]
[1718990974235,0.49754567,3479.7,3479.5,2.29917]
[1718990974535,0.76442,3480.4,3479.6,2.29911]
[1718990974833,1.33840112,3480.3,3479.6,2.29911]
[1718990975123,1.33840112,3480.3,3479.4,2.29923]
[1718990975124,0.49753912,3480.2,3479.5,2.29916]
[1718990975327,0.49754714,3480.1,3479.5,2.29916]
[1718990975531,0.840862,3480.3,3479.5,2.29916]
[1718990975696,0.49755027,3480.2,3479.7,0.844]
[1718990975896,0.49755027,3480.1,3479.7,0.844]
[1718990976115,0.49755027,3480.0,3479.7,0.844]
[1718990976338,0.49755027,3479.9,3479.7,0.844]
[1718990976509,0.49755027,3479.8,3479.7,0.844]
[1718990978110,0.49755027,3479.8,3479.6,0.844]
[1718990978314,0.840862,3480.3,3479.6,0.844]
[1718990978514,0.88163325,3480.2,3479.6,0.844]
[1718990978713,0.49754705,3480.1,3479.6,0.844]
[1718990978922,0.49754262,3480.0,3479.6,0.844]
[1718990979102,0.49754262,3479.9,3479.6,3.14311]
[1718990979300,0.840862,3480.3,3479.6,3.14311]
[1718990979301,0.49756194,3479.8,3479.6,3.14311]
[1718990979506,0.49756194,3479.7,3479.6,3.14311]
[1718990981363,3.0,3480.5,3479.6,3.14311]
[1718990981550,0.49755638,3479.7,3479.6,3.14311]
[1718990984319,0.84882,3480.4,3479.6,3.14311]
[1718990984643,0.49754991,3480.3,3479.6,3.14311]
[1718990984844,0.49754991,3480.2,3479.6,3.14311]
[1718990985044,0.49754991,3480.1,3479.6,3.14311]
[1718990985252,0.49754991,3480.0,3479.6,3.14311]
[1718990985422,0.49754991,3479.9,3479.6,3.14311]
[1718990985625,0.49754991,3479.8,3479.6,3.14311]
[1718990985821,0.49754991,3479.7,3479.6,3.14311]
[1718990987688,0.49755119,3479.7,3479.6,3.14311]
[1718990987859,0.49754989,3479.7,3479.6,3.14311]
[1718990988390,0.49754989,3479.7,3479.5,2.29917]
[1718990988548,3.0,3480.5,3479.5,2.29917]
[1718990988549,0.49754989,3479.6,3479.5,2.29917]
[1718990988742,0.49754989,3479.6,3478.6,2.29976]
[1718990988944,1.01676488,3479.5,3478.9,2.29953]
[1718990989185,0.49754989,3479.4,3478.9,2.29953]
[1718990989394,0.49754989,3479.3,3478.9,2.29953]
[1718990989699,0.51921499,3479.5,3478.9,2.29953]
[1718990989700,0.49754989,3479.2,3479.0,0.844]
[1718990989899,0.49754989,3479.1,3479.0,0.844]
[1718990990362,3.0,3479.6,3479.0,0.844]
[1718990990550,0.49763414,3479.5,3479.0,0.844]
[1718990990751,0.49763414,3479.4,3479.0,0.844]
[1718990990986,0.49763414,3479.3,3479.0,0.844]
[1718990991285,0.49763414,3479.2,3479.0,0.844]
[1718990991507,0.49763414,3479.1,3479.0,0.844]
[1718990991928,0.49764295,3479.1,3479.0,0.844]
[1718990992204,0.49764295,3479.1,3478.8,2.29963]
[1718990992205,0.49764295,3479.1,3478.9,3.14357]
[1718990992381,0.49764295,3479.0,3478.9,3.14357]
[1718990992581,0.49764295,3479.5,3478.9,3.14357]
[1718990992814,3.76946,3479.6,3478.9,3.14357]
[1718990992815,0.49764295,3479.4,3479.1,0.844]
[1718990992968,0.49764295,3479.3,3479.1,0.844]
[1718990993168,0.49764295,3479.2,3479.1,3.14343]
[1718990993370,3.0,3479.7,3479.1,0.844]
[1718990993666,0.49762297,3479.6,3479.1,0.844]
[1718990993890,0.49762297,3479.5,3479.1,0.844]
[1718990994127,0.49762297,3479.4,3479.1,0.844]
[1718990994320,0.49762297,3479.3,3479.1,0.844]
[1718990994495,0.49762297,3479.6,3479.1,0.844]
[1718990994693,0.49762297,3479.5,3479.1,0.844]
[1718990994899,0.49762297,3479.4,3479.1,0.844]
[1718990995206,0.49762297,3479.3,3479.1,0.844]
[1718990995393,0.49762297,3479.2,3479.1,0.844]
[1718990995829,0.49762297,3479.6,3479.1,0.844]
[1718990996023,0.49762297,3479.5,3479.1,0.844]
[1718990996427,0.9046383,3479.6,3479.1,0.844]
[1718990997031,0.49764192,3479.5,3479.1,0.844]
[1718990997198,0.49764192,3479.4,3479.1,0.844]
[1718990997398,0.49764192,3479.3,3479.1,0.844]
[1718990997645,0.49764192,3479.2,3479.1,0.844]
[1718990997801,0.49764192,3479.6,3479.1,0.844]
[1718990998003,0.49764192,3479.5,3479.1,0.844]
[1718990998337,0.49764192,3479.4,3479.1,0.844]
[1718990998511,0.49764192,3479.3,3479.1,0.844]
[1718990998697,0.49764192,3479.6,3478.9,3.14357]
[1718990998898,3.86156,3479.7,3478.9,3.14357]
[1718991000216,3.86156,3479.7,3479.0,2.29949]
[1718991000531,3.0,3479.7,3479.1,0.844]
[1718991000841,3.0,3479.7,3478.8,2.29963]
[1718991001012,3.0,3479.7,3478.9,2.29957]
[1718991001735,3.0,3479.7,3478.8,0.844]
[1718991002108,0.49764364,3479.6,3478.9,2.29956]
[1718991002411,0.844,3479.1,3478.1,4.4558]
[1718991002613,0.844,3479.1,3477.8,7.44]
[1718991002614,1.37569391,3478.2,3478.0,0.844]
[1718991002937,1.87345704,3478.1,3478.0,3.14417]
[1718991003697,1.37569391,3478.2,3478.1,2.3001]
[1718991003892,1.37569391,3478.5,3478.3,2.29997]
[1718991004194,1.37569391,3478.5,3478.2,4.7526]
[1718991004195,1.37569391,3479.0,3478.9,2.29957]
[1718991004427,1.37569391,3479.0,3478.9,3.14357]
[1718991004790,0.49762758,3479.0,3478.9,5.44314]
[1718991005000,3.0,3479.8,3479.0,2.29951]
[1718991005198,1.37627338,3479.1,3479.0,3.14351]
[1718991005397,0.49762609,3479.1,3479.0,3.14351]
[1718991005638,1.87391138,3479.1,3479.0,3.14351]
[1718991005937,0.49762609,3479.1,3479.0,3.995213]
[1718991006144,0.49762609,3479.1,3479.0,0.844]
[1718991006313,0.49762609,3479.1,3478.8,3.14359]
[1718991006530,0.49762609,3479.0,3478.4,2.29985]
[1718991006724,1.37616575,3478.6,3478.4,2.29985]
[1718991006933,1.87379184,3478.5,3478.4,2.29985]
[1718991007125,1.87379184,3478.5,3478.4,2.84985]
[1718991007452,1.37616575,3478.6,3478.5,4.59968]
[1718991007658,0.4976951,3478.6,3478.5,4.59968]
[1718991007821,1.37616575,3478.7,3478.4,4.2707299]
[1718991008149,3.0,3479.7,3478.4,4.2707299]
[1718991008150,3.0,3479.7,3478.5,2.29983]
[1718991008348,1.37621451,3478.7,3478.5,2.29983]
[1718991008561,4.3974,3479.1,3478.4,0.55]
[1718991008723,0.49770597,3479.0,3478.2,7.44]
[1718991008915,0.49770597,3478.9,3478.0,2.30015]
[1718991009255,1.37599924,3478.2,3477.9,2.30022]
[1718991010356,1.37599924,3478.3,3478.0,2.30011]
[1718991010516,1.37599924,3478.3,3477.2,7.44]
[1718991010517,1.37599924,3478.3,3477.7,2.30036]
[1718991010716,0.49775881,3478.8,3477.6,2.30043]
[1718991010717,1.37599924,3478.1,3477.6,2.30043]
[1718991010917,1.37599924,3477.9,3477.6,2.30043]
[1718991011221,1.37599924,3477.9,3477.4,6.73726]
[1718991011222,1.37599924,3477.8,3477.1,2.30075]
[1718991011422,0.49775881,3477.8,3477.3,2.30063]
[1718991011616,1.37599924,3477.7,3477.3,2.30063]
[1718991011945,1.37599924,3477.6,3477.2,2.30067]
[1718991012127,1.37599924,3477.6,3477.2,3.214059]
[1718991012457,1.37599924,3477.7,3477.4,2.30051]
[1718991012656,1.37599924,3477.8,3477.4,2.30051]
[1718991012823,1.37599924,3477.8,3477.4,2.8519689]
[1718991013222,1.37599924,3477.7,3477.4,2.8519689]
[1718991013443,3.0,3478.3,3477.5,0.55]
[1718991013670,1.37624937,3477.8,3477.5,0.55]
[1718991014361,1.37624937,3477.9,3477.5,0.55]
[1718991014569,0.4978487,3477.8,3477.5,0.55]
[1718991014771,1.37624937,3477.9,3477.5,0.55]
[1718991015051,0.49784871,3477.8,3477.5,0.55]
[1718991015279,1.37624937,3477.9,3477.6,2.30042]
[1718991015422,1.37624937,3478.0,3477.7,2.8503]
[1718991015627,1.37624937,3478.1,3477.7,2.3003]
[1718991015946,1.37624937,3478.1,3477.8,0.55]
[1718991016142,1.37624937,3478.1,3477.8,1.18624048]
[1718991016364,1.37624937,3478.2,3478.0,2.3001]
[1718991016559,4.7937,3478.9,3478.1,0.55]
[1718991016722,1.37644963,3478.4,3478.1,0.55]
[1718991016922,1.37644963,3478.4,3478.0,0.55]
[1718991017127,4.7937,3478.9,3477.8,0.63624048]
[1718991017342,1.37648168,3478.3,3477.6,2.027]
[1718991017548,1.37648168,3478.1,3477.7,0.55]
[1718991017948,1.37648168,3478.1,3477.3,2.30063]
[1718991018256,1.37648168,3478.1,3477.4,2.85056]
[1718991018461,1.37648168,3478.1,3477.5,0.8091579]
[1718991018628,1.37648168,3478.1,3477.6,0.55]
[1718991019024,1.87430651,3478.0,3477.4,2.30054]
[1718991019265,1.87430651,3477.9,3477.5,0.55]
[1718991019561,1.87327412,3477.8,3477.5,0.55]
[1718991019723,0.49784547,3477.8,3477.5,0.55]
[1718991019927,1.37542865,3477.9,3477.5,0.55]
[1718991020127,1.37542865,3477.9,3477.5,2.85048]
[1718991020328,1.87328088,3478.0,3477.5,2.85048]
[1718991020530,0.49784444,3477.9,3477.5,2.85048]
[1718991020735,1.37542865,3478.1,3477.6,2.30038]
[1718991020963,1.37542865,3478.1,3477.5,1.065117]
[1718991020964,1.37542865,3478.4,3477.9,2.30023]
[1718991021164,1.37542865,3478.4,3478.0,0.55]
[1718991021531,0.49777818,3478.3,3478.0,0.55]
[1718991021863,1.87321357,3478.3,3478.0,0.55]
[1718991022061,0.49778492,3478.2,3477.8,0.55]
[1718991022439,1.87317566,3478.1,3477.6,0.55]
[1718991022663,1.37534336,3478.1,3477.7,2.30031]
[1718991022965,1.37534336,3478.2,3477.8,0.55]
[1718991023546,1.37534336,3478.2,3477.7,2.85031]
[1718991023745,1.37534336,3478.3,3477.8,2.30029]
[1718991024076,1.87313917,3478.2,3477.9,0.55]
[1718991024364,1.87313917,3478.2,3477.8,2.8503]
[1718991024365,0.49779581,3478.1,3477.8,2.8503]
[1718991024570,1.87313917,3478.1,3477.8,2.8503]
[1718991024737,1.37534336,3478.1,3477.8,2.8503]
[1718991024932,1.37534336,3478.2,3477.8,0.55]
[1718991025137,3.0,3478.8,3477.8,0.55]
[1718991025341,1.37453183,3478.2,3478.0,6.90051]
[1718991025547,7.29,3479.9,3478.5,4.59968]
[1718991025548,1.37453183,3478.6,3478.5,4.59968]
[1718991025876,1.37453183,3478.6,3478.3,2.29996]
[1718991025877,1.37453183,3479.0,3478.8,2.29964]
[1718991026049,1.37453183,3479.1,3478.9,0.55]
[1718991026254,0.49767499,3479.0,3478.9,0.55]
[1718991026483,0.49767505,3479.0,3478.8,0.55]
[1718991026780,1.87242467,3479.0,3478.8,0.55]
[1718991026990,1.87242467,3479.0,3478.3,2.027]
[1718991026991,0.49767505,3478.9,3478.7,0.55]
[1718991027139,1.87242467,3478.9,3478.5,2.29983]
[1718991027339,0.49767505,3478.8,3478.6,0.55]
[1718991027764,1.37474962,3478.9,3478.6,0.55]
[1718991028191,1.87200166,3478.8,3478.1,2.3001]
[1718991028390,1.37421527,3478.6,3478.2,0.55]
[1718991028597,0.49772246,3478.5,3478.2,0.55]
[1718991028895,1.37421527,3478.6,3478.2,0.55]
[1718991029252,1.37421527,3478.5,3477.8,9.7403]
[1718991029468,1.87194749,3478.4,3477.8,1.94094977]
[1718991029657,1.37421527,3478.2,3477.7,2.30036]
[1718991029976,1.37421527,3478.2,3477.8,2.30028]
[1718991030189,1.37421527,3478.3,3477.9,2.30022]
[1718991030338,1.37421527,3478.3,3478.0,2.30016]
[1718991030679,1.37421527,3478.4,3478.1,0.55]
[1718991031054,0.49776496,3478.3,3477.9,0.55]
[1718991031266,1.87232,3478.3,3477.9,0.55]
[1718991031463,0.49777355,3478.2,3477.8,0.55]
[1718991031781,1.37454645,3478.3,3477.8,0.55]
[1718991031950,1.37454645,3478.1,3477.8,0.55]
[1718991032283,1.37454645,3477.9,3477.4,2.30056]
[1718991032489,0.49783641,3477.8,3477.4,2.30056]
[1718991032694,1.37454645,3477.9,3477.4,2.30056]
[1718991032842,1.87238483,3477.8,3477.4,2.30056]
[1718991033041,1.37454645,3477.8,3477.5,2.3005]
[1718991033379,0.73964,3478.7,3477.5,2.3005]
[1718991033380,1.37454645,3477.9,3477.5,2.3005]
[1718991033593,1.37454645,3478.0,3477.8,2.3003]
[1718991033747,1.37454645,3478.0,3477.8,2.30024]
[1718991033941,0.73964,3478.7,3477.9,0.55]
[1718991033942,1.37487905,3478.1,3477.9,0.55]
[1718991034182,1.37487905,3478.2,3477.9,0.55]
[1718991034385,0.73964,3478.7,3477.9,0.55]
[1718991034675,1.37485742,3478.1,3477.9,2.85022]
[1718991034844,1.87263883,3478.0,3477.9,2.85022]
[1718991035044,1.87263883,3478.0,3477.9,0.55]
[1718991035282,1.87263883,3478.0,3477.7,2.30036]
[1718991035283,1.37485742,3478.0,3477.8,0.55]
[1718991035578,1.37485742,3478.0,3477.9,6.62746]
[1718991035781,1.37485742,3478.2,3478.0,2.30016]
[1718991036161,1.37485742,3478.3,3478.1,0.55]
[1718991036360,3.0,3479.0,3478.1,2.85008]
[1718991036361,1.87261634,3478.2,3478.1,2.85008]
[1718991036583,1.37485742,3478.2,3478.1,2.85008]
[1718991036860,3.0,3479.0,3478.1,4.27765]
[1718991037057,0.4977719,3478.9,3478.1,2.85008]
[1718991037367,4.4532,3479.3,3478.1,2.85008]
[1718991037368,0.4977719,3478.8,3478.1,0.55]
[1718991037566,0.4977719,3478.7,3478.1,2.85009]
[1718991037868,0.4977719,3478.6,3478.1,2.85009]
[1718991038066,0.4977719,3479.1,3478.2,0.967519]
[1718991038272,0.4977719,3479.0,3478.3,0.55]
[1718991038599,0.4977719,3478.9,3478.2,2.3]
[1718991038889,4.457,3480.0,3478.7,2.29969]
[1718991039107,1.67239437,3479.9,3478.8,2.29958]
[1718991039257,0.49769437,3479.9,3478.9,2.84957]
[1718991039457,0.49769437,3479.8,3478.9,0.55]
[1718991039650,0.49769437,3479.7,3478.8,0.55]
[1718991039850,0.49766959,3479.6,3478.8,2.84964]
[1718991040046,0.49766959,3479.5,3478.8,2.84964]
[1718991040274,0.49766959,3479.4,3478.8,3.594551]
[1718991040498,1.37640007,3478.9,3478.8,2.84964]
[1718991040661,1.87406966,3478.9,3478.8,2.84964]
[1718991042059,1.87406966,3478.9,3478.8,5.14928]
[1718991042265,0.49766959,3478.9,3478.8,5.14928]
[1718991042504,1.37640007,3479.0,3478.9,9.19828]
[1718991042724,4.76228711,3481.0,3479.8,2.29893]
[1718991042869,4.76228711,3481.0,3480.0,2.29885]
[1718991042870,1.37705145,3480.1,3480.0,2.29885]
[1718991043215,4.5541,3481.0,3480.2,2.29868]
[1718991043371,1.3773338,3480.4,3480.2,2.29868]
[1718991043711,1.3773338,3480.6,3480.3,0.55]
[1718991043867,1.3773338,3480.5,3480.3,2.84864]
[1718991044224,1.3773338,3480.6,3480.3,2.84864]
[1718991044372,1.3773338,3480.7,3480.3,2.84864]
[1718991045400,0.49746671,3480.8,3480.3,2.84864]
[1718991045401,1.3773338,3480.8,3480.3,2.84864]
[1718991045617,3.0,3480.9,3480.3,2.84864]
[1718991045794,1.87472949,3480.8,3480.3,2.84864]
[1718991046120,1.87472949,3480.8,3480.4,2.29858]
[1718991046323,1.87472949,3480.8,3480.7,6.89514]
[1718991046527,5.943858,3482.6,3481.2,2.29803]
[1718991046528,1.3772622,3481.9,3481.2,2.29803]
[1718991046815,1.3772622,3482.0,3481.2,2.29803]
[1718991046965,1.3772622,3482.0,3481.3,0.55]
[1718991047471,1.3772622,3482.2,3481.3,0.55]
[1718991047817,1.3772622,3482.2,3481.3,2.84797]
[1718991048311,1.3772622,3482.3,3481.3,2.84797]
[1718991048604,0.54689528,3482.2,3481.3,0.55]
[1718991048776,0.54689528,3482.2,3481.0,2.29812]
[1718991048777,0.54689528,3482.2,3481.2,2.29805]
[1718991048983,0.54689528,3482.2,3481.3,0.55]
[1718991051711,0.54689528,3482.2,3481.4,2.84791]
[1718991052513,0.54689528,3482.2,3481.4,0.55]
[1718991052905,0.19249105,3482.1,3481.2,0.55]
[1718991053798,0.54689528,3482.2,3481.2,0.55]
[1718991054716,0.54689528,3482.2,3481.2,2.84805]
[1718991054911,4.97159245,3482.5,3481.2,2.84805]
[1718991055122,3.5943858,3482.5,3481.2,2.577]
[1718991055315,3.5943858,3482.5,3481.5,2.29785]
[1718991055518,3.5943858,3482.5,3481.6,0.55]
[1718991055716,0.97643924,3482.4,3481.6,0.55]
[1718991055905,0.97643924,3482.4,3481.4,0.55]
[1718991056070,3.5943858,3482.5,3481.4,0.55]
[1718991056713,3.5943858,3482.5,3481.5,2.29779]
[1718991056714,3.0,3482.5,3481.5,2.29779]
[1718991056916,3.0,3482.5,3481.6,0.55]
[1718991057211,3.0,3482.5,3481.4,2.84786]
[1718991057418,3.0,3482.5,3481.5,3.47825]
[1718991057573,3.0,3482.5,3481.6,0.55]
[1718991059623,3.0,3482.5,3481.6,2.84775]
[1718991059987,3.0,3482.5,3481.7,2.29772]
[1718991060189,3.0,3482.5,3481.8,2.84764]
[1718991060433,3.0,3482.5,3481.9,0.569536]
[1718991060579,3.0,3482.5,3481.8,0.55]
[1718991060580,3.0,3482.5,3482.0,0.55]
[1718991060779,3.0,3482.5,3481.8,0.55]
[1718991060980,3.0,3482.5,3481.6,2.577]
[1718991061206,3.0,3482.9,3482.1,2.29745]
[1718991061418,3.0,3482.9,3482.3,2.2973]
[1718991061718,3.0,3482.9,3482.3,2.29732]
[1718991061939,3.0,3482.9,3482.4,0.55]
[1718991062231,3.0,3482.9,3482.4,2.84726]
[1718991062382,7.29,3484.0,3482.4,2.84726]
[1718991062383,4.7267,3483.4,3482.5,2.29717]
[1718991062745,4.7267,3483.4,3482.6,0.55]
[1718991062950,4.7267,3483.4,3482.5,2.84713]
[1718991062951,3.0,3483.3,3482.5,2.84713]
[1718991063638,3.0,3483.3,3482.7,2.297]
[1718991063852,4.6609,3483.8,3482.8,0.55]
[1718991063853,3.0,3483.7,3482.8,0.55]
[1718991064017,3.0,3483.7,3482.9,2.29692]
[1718991064340,3.0,3483.7,3483.1,2.2968]
[1718991064507,3.0,3483.7,3483.2,0.55]
[1718991064731,3.0,3484.1,3483.2,0.55]
[1718991064937,0.88690537,3484.0,3483.2,0.55]
[1718991065159,0.88690537,3484.0,3483.1,2.84678]
[1718991065311,3.0,3484.1,3483.3,2.29667]
[1718991065653,3.0,3484.1,3483.4,0.55]
[1718991066000,4.4917,3484.2,3483.4,0.55]
[1718991066706,4.4917,3484.2,3483.1,2.29677]
[1718991066707,4.4917,3484.2,3483.2,0.55]
[1718991067054,4.4917,3484.2,3483.3,2.29666]
[1718991067221,4.4917,3484.2,3483.4,0.55]
[1718991067546,3.0,3484.1,3483.4,0.55]
[1718991068359,5.76358162,3484.7,3483.5,2.29652]
[1718991068517,3.0,3484.6,3483.6,0.55]
[1718991068706,4.37690762,3484.6,3483.6,0.55]
[1718991068901,0.87637076,3484.5,3483.6,0.55]
[1718991069102,3.0,3484.6,3483.6,0.55]
[1718991069339,3.0,3484.6,3483.6,2.84646]
[1718991069545,3.0,3484.6,3483.6,7.16987]
[1718991069748,3.0,3484.6,3483.7,2.29638]
[1718991069912,3.0,3484.6,3483.8,0.55]
[1718991070117,3.0,3484.6,3483.9,0.771979]
[1718991070345,3.0,3484.6,3484.0,0.55]
[1718991070855,1.37698454,3484.8,3484.0,0.55]
[1718991071057,0.49697321,3484.7,3484.0,0.55]
[1718991071348,4.5172,3485.1,3483.7,2.8464]
[1718991071563,1.87401326,3484.7,3483.8,3.472627]
[1718991071709,1.37705568,3484.7,3483.9,2.84626]
[1718991071913,1.37705568,3484.8,3483.9,2.84626]
[1718991072113,1.37705568,3484.9,3484.0,2.2962]
[1718991072414,1.87399157,3484.8,3484.1,0.55]
[1718991072745,3.0,3485.0,3484.2,2.63569]
[1718991072746,1.37705568,3484.9,3484.2,2.63569]
[1718991072958,1.37705568,3485.2,3484.4,2.027]
[1718991073158,1.87392468,3485.3,3484.5,1.071269]
[1718991073315,3.0,3485.4,3484.5,1.071269]
[1718991073316,4.37705568,3485.4,3484.5,1.071269]
[1718991073514,0.49684515,3485.3,3484.5,1.071269]
[1718991073813,1.37705568,3485.4,3484.5,1.071269]